[Event "Late-Titled-Tuesday-Blitz-February-27-2024"]
[Site "Chess.com"]
[Date "2024.02.27"]
[Round "8"]
[White "martinmena"]
[Black "Hui_Li_Macau"]
[Result "0-1"]
[WhiteElo "2238"]
[BlackElo "2360"]
[TimeControl "180+1"]
[EndTime "15:29:08 PST"]
[Termination "Hui_Li_Macau won by checkmate"]

1. c4 {[%clk 0:03:00.9]} 1... e6 {[%clk 0:02:59.4]} 2. g3 {[%clk 0:03:00.7]}
2... d5 {[%clk 0:02:57.5]} 3. Bg2 {[%clk 0:03:01.1]} 3... Nf6 {[%clk 0:02:45]}
4. Nf3 {[%clk 0:03:01]} 4... dxc4 {[%clk 0:02:43.2]} 5. Qa4+ {[%clk 0:02:59.5]}
5... Nbd7 {[%clk 0:02:39.8]} 6. O-O {[%clk 0:02:53.8]} 6... a6 {[%clk
0:02:37.5]} 7. Qxc4 {[%clk 0:02:51.6]} 7... b5 {[%clk 0:02:33.3]} 8. Qc2 {[%clk
0:02:16]} 8... Bb7 {[%clk 0:02:31.4]} 9. d3 {[%clk 0:02:14.4]} 9... c5 {[%clk
0:02:31.1]} 10. Bf4 {[%clk 0:02:09.2]} 10... Qb6 {[%clk 0:02:25.5]} 11. Nc3
{[%clk 0:02:03.2]} 11... Bd6 {[%clk 0:02:13.6]} 12. Bxd6 {[%clk 0:01:58.6]}
12... Qxd6 {[%clk 0:02:14.5]} 13. Ng5 {[%clk 0:01:53.8]} 13... Bxg2 {[%clk
0:02:11.5]} 14. Kxg2 {[%clk 0:01:54.7]} 14... h6 {[%clk 0:02:05.6]} 15. Nge4
{[%clk 0:01:54.4]} 15... Qb6 {[%clk 0:02:00.9]} 16. Rfd1 {[%clk 0:01:43.9]}
16... O-O {[%clk 0:02:00.4]} 17. e3 {[%clk 0:01:29.3]} 17... Rac8 {[%clk
0:01:58.8]} 18. Qe2 {[%clk 0:01:25.6]} 18... Qc6 {[%clk 0:01:46.6]} 19. Qf3
{[%clk 0:01:16.7]} 19... Nxe4 {[%clk 0:01:39.4]} 20. Qxe4 {[%clk 0:01:11.8]}
20... Ne5 {[%clk 0:01:26.2]} 21. Qxc6 {[%clk 0:01:03.7]} 21... Rxc6 {[%clk
0:01:21.8]} 22. d4 {[%clk 0:00:59.8]} 22... cxd4 {[%clk 0:01:19.5]} 23. Rxd4
{[%clk 0:01:00.7]} 23... Nc4 {[%clk 0:01:18.4]} 24. Nd1 {[%clk 0:00:42.9]} 24...
Rfc8 {[%clk 0:01:02.4]} 25. Rb1 {[%clk 0:00:25.5]} 25... Rd6 {[%clk 0:01:01.1]}
26. Rxd6 {[%clk 0:00:19.1]} 26... Nxd6 {[%clk 0:01:02]} 27. Nc3 {[%clk
0:00:19.4]} 27... Nc4 {[%clk 0:01:00]} 28. Ne2 {[%clk 0:00:19.4]} 28... Ne5
{[%clk 0:00:54.8]} 29. Rc1 {[%clk 0:00:17.5]} 29... Rxc1 {[%clk 0:00:48.9]} 30.
Nxc1 {[%clk 0:00:18]} 30... Kf8 {[%clk 0:00:49.1]} 31. b3 {[%clk 0:00:13]} 31...
Ke7 {[%clk 0:00:47.1]} 32. f4 {[%clk 0:00:13.2]} 32... Nc6 {[%clk 0:00:47.3]}
33. Kf3 {[%clk 0:00:13.5]} 33... Kd6 {[%clk 0:00:47]} 34. Ke4 {[%clk 0:00:12.2]}
34... Nb4 {[%clk 0:00:43]} 35. Kd4 {[%clk 0:00:11.5]} 35... h5 {[%clk
0:00:36.5]} 36. e4 {[%clk 0:00:10.9]} 36... f6 {[%clk 0:00:26.8]} 37. Kc3 {[%clk
0:00:08.2]} 37... Nc6 {[%clk 0:00:24.7]} 38. b4 {[%clk 0:00:07.1]} 38... f5
{[%clk 0:00:20.6]} 39. exf5 {[%clk 0:00:04]} 39... exf5 {[%clk 0:00:21.5]} 40.
Kd3 {[%clk 0:00:03.1]} 40... Nxb4+ {[%clk 0:00:21.2]} 41. Kd4 {[%clk 0:00:02.9]}
41... Nc6+ {[%clk 0:00:21.5]} 42. Kd3 {[%clk 0:00:02.9]} 42... Kd5 {[%clk
0:00:20.9]} 43. Nb3 {[%clk 0:00:03.4]} 43... Nb4+ {[%clk 0:00:19.7]} 44. Kc3
{[%clk 0:00:03.3]} 44... Nxa2+ {[%clk 0:00:19.6]} 45. Kb2 {[%clk 0:00:04.2]}
45... Nb4 {[%clk 0:00:19.9]} 46. Nd2 {[%clk 0:00:05.1]} 46... Nd3+ {[%clk
0:00:15.6]} 47. Kc3 {[%clk 0:00:04.7]} 47... Nc5 {[%clk 0:00:16]} 48. Nf3 {[%clk
0:00:04.7]} 48... Ne4+ {[%clk 0:00:15.1]} 49. Kb3 {[%clk 0:00:03.5]} 49... a5
{[%clk 0:00:14.1]} 50. Nh4 {[%clk 0:00:02.9]} 50... Nd6 {[%clk 0:00:12.5]} 51.
Ng6 {[%clk 0:00:03.4]} 51... Ke4 {[%clk 0:00:11.3]} 52. Ne7 {[%clk 0:00:02.7]}
52... Kf3 {[%clk 0:00:11.2]} 53. Nc6 {[%clk 0:00:03]} 53... a4+ {[%clk
0:00:09.6]} 54. Kb4 {[%clk 0:00:02.9]} 54... Kg2 {[%clk 0:00:10]} 55. Kc5 {[%clk
0:00:02.8]} 55... a3 {[%clk 0:00:09.1]} 56. Nb4 {[%clk 0:00:03.6]} 56... Ne4+
{[%clk 0:00:07.9]} 57. Kxb5 {[%clk 0:00:03.6]} 57... Nc3+ {[%clk 0:00:08.1]} 58.
Kc4 {[%clk 0:00:03.5]} 58... a2 {[%clk 0:00:08.4]} 59. Nxa2 {[%clk 0:00:03.7]}
59... Nxa2 {[%clk 0:00:09.3]} 60. h4 {[%clk 0:00:03.8]} 60... Kxg3 {[%clk
0:00:09.5]} 61. Kd5 {[%clk 0:00:04.5]} 61... Kxf4 {[%clk 0:00:09.8]} 62. Ke6
{[%clk 0:00:05.2]} 62... Kg4 {[%clk 0:00:10.3]} 63. Kf7 {[%clk 0:00:05.9]} 63...
Kxh4 {[%clk 0:00:10.8]} 64. Kxg7 {[%clk 0:00:06.5]} 64... Kg5 {[%clk 0:00:11.4]}
65. Kf7 {[%clk 0:00:06.5]} 65... f4 {[%clk 0:00:12.3]} 66. Ke6 {[%clk
0:00:07.2]} 66... f3 {[%clk 0:00:12.8]} 67. Ke5 {[%clk 0:00:08.1]} 67... f2
{[%clk 0:00:13.2]} 68. Ke4 {[%clk 0:00:09]} 68... f1=Q {[%clk 0:00:13.3]} 69.
Ke3 {[%clk 0:00:09.9]} 69... Qf4+ {[%clk 0:00:13.6]} 70. Kd3 {[%clk 0:00:10]}
70... h4 {[%clk 0:00:14.1]} 71. Ke2 {[%clk 0:00:10.9]} 71... Qg3 {[%clk
0:00:14.3]} 72. Kd2 {[%clk 0:00:10.6]} 72... Qf3 {[%clk 0:00:14.6]} 73. Kc2
{[%clk 0:00:11.5]} 73... h3 {[%clk 0:00:12.1]} 74. Kb2 {[%clk 0:00:12.4]} 74...
h2 {[%clk 0:00:12.3]} 75. Kc2 {[%clk 0:00:13.3]} 75... h1=Q {[%clk 0:00:11.2]}
76. Kb2 {[%clk 0:00:14.2]} 76... Qhg2+ {[%clk 0:00:11.3]} 77. Ka1 {[%clk
0:00:09.2]} 77... Qff1# {[%clk 0:00:10.2]} 0-1

[Event "Late-Titled-Tuesday-Blitz-February-27-2024"]
[Site "Chess.com"]
[Date "2024.02.27"]
[Round "8"]
[White "NCchamp"]
[Black "ural58"]
[Result "1/2-1/2"]
[WhiteElo "2360"]
[BlackElo "2486"]
[TimeControl "180+1"]
[EndTime "15:29:21 PST"]
[Termination "Game drawn - insufficient material"]

1. d4 {[%clk 0:02:59.7]} 1... d5 {[%clk 0:02:25]} 2. c4 {[%clk 0:02:57.8]} 2...
e5 {[%clk 0:02:24.8]} 3. dxe5 {[%clk 0:02:57]} 3... d4 {[%clk 0:02:24.8]} 4. Nf3
{[%clk 0:02:53.3]} 4... Nc6 {[%clk 0:02:24.6]} 5. Bf4 {[%clk 0:02:50.9]} 5...
Nge7 {[%clk 0:02:20.2]} 6. e3 {[%clk 0:02:49]} 6... Ng6 {[%clk 0:02:19.5]} 7.
Nbd2 {[%clk 0:02:47.7]} 7... Nxf4 {[%clk 0:01:59]} 8. exf4 {[%clk 0:02:47.3]}
8... f6 {[%clk 0:01:59.7]} 9. Bd3 {[%clk 0:02:43.5]} 9... Bg4 {[%clk 0:01:50.7]}
10. h3 {[%clk 0:02:39.6]} 10... Bh5 {[%clk 0:01:50.4]} 11. O-O {[%clk
0:02:30.8]} 11... Qd7 {[%clk 0:01:50.2]} 12. exf6 {[%clk 0:02:05.4]} 12... O-O-O
{[%clk 0:01:43.5]} 13. Ne4 {[%clk 0:01:49.5]} 13... Rg8 {[%clk 0:01:23.4]} 14.
Ng3 {[%clk 0:01:48.8]} 14... Bg6 {[%clk 0:01:19.9]} 15. Bxg6 {[%clk 0:01:42]}
15... hxg6 {[%clk 0:01:19.4]} 16. Ne5 {[%clk 0:01:37.4]} 16... Nxe5 {[%clk
0:01:14.6]} 17. fxe5 {[%clk 0:01:38.3]} 17... gxf6 {[%clk 0:01:14.8]} 18. exf6
{[%clk 0:01:37.6]} 18... Qc6 {[%clk 0:01:12.1]} 19. Qf3 {[%clk 0:01:29.6]} 19...
Qxf3 {[%clk 0:00:56]} 20. gxf3 {[%clk 0:01:30.5]} 20... d3 {[%clk 0:00:47.5]}
21. Ne4 {[%clk 0:01:23]} 21... Bh6 {[%clk 0:00:40.3]} 22. Kg2 {[%clk 0:01:17.4]}
22... Bf4 {[%clk 0:00:39.2]} 23. b4 {[%clk 0:01:13.7]} 23... Rd4 {[%clk
0:00:36.1]} 24. Rfd1 {[%clk 0:00:58.9]} 24... Rgd8 {[%clk 0:00:33.2]} 25. Rab1
{[%clk 0:00:48.4]} 25... Rxc4 {[%clk 0:00:32.2]} 26. Rb3 {[%clk 0:00:34.3]}
26... Rcd4 {[%clk 0:00:19.6]} 27. Nc5 {[%clk 0:00:23]} 27... R4d6 {[%clk
0:00:12.1]} 28. Ne4 {[%clk 0:00:21.9]} 28... Rd5 {[%clk 0:00:10.5]} 29. Rc3
{[%clk 0:00:19]} 29... b6 {[%clk 0:00:09.6]} 30. Rc6 {[%clk 0:00:18.2]} 30...
Kd7 {[%clk 0:00:06.5]} 31. Rc3 {[%clk 0:00:17.6]} 31... Ke6 {[%clk 0:00:06]} 32.
Rc6+ {[%clk 0:00:14.2]} 32... Kf7 {[%clk 0:00:06]} 33. Rc3 {[%clk 0:00:12.8]}
33... d2 {[%clk 0:00:05.2]} 34. Rc2 {[%clk 0:00:11.6]} 34... Be5 {[%clk
0:00:05.3]} 35. f4 {[%clk 0:00:09.3]} 35... Bxf4 {[%clk 0:00:04.9]} 36. Kf3
{[%clk 0:00:09.7]} 36... Be5 {[%clk 0:00:04.5]} 37. Ng5+ {[%clk 0:00:09.1]}
37... Kxf6 {[%clk 0:00:04.1]} 38. Ne4+ {[%clk 0:00:09.6]} 38... Kg7 {[%clk
0:00:04.3]} 39. Ke2 {[%clk 0:00:08.6]} 39... Bf4 {[%clk 0:00:03.7]} 40. f3
{[%clk 0:00:06.7]} 40... Bh6 {[%clk 0:00:04.2]} 41. h4 {[%clk 0:00:06.1]} 41...
R8d7 {[%clk 0:00:04.4]} 42. Ng5 {[%clk 0:00:05.3]} 42... Bxg5 {[%clk 0:00:04.8]}
43. hxg5 {[%clk 0:00:06.2]} 43... Rxg5 {[%clk 0:00:05]} 44. Rdxd2 {[%clk
0:00:06.6]} 44... Re5+ {[%clk 0:00:05.3]} 45. Kf2 {[%clk 0:00:06.1]} 45... Rxd2+
{[%clk 0:00:05]} 46. Rxd2 {[%clk 0:00:07]} 46... Re7 {[%clk 0:00:04.2]} 47. Rc2
{[%clk 0:00:06.7]} 47... Kf7 {[%clk 0:00:04.9]} 48. Rc6 {[%clk 0:00:05.2]} 48...
g5 {[%clk 0:00:04.1]} 49. Kg3 {[%clk 0:00:05.6]} 49... Ke8 {[%clk 0:00:04]} 50.
Kg4 {[%clk 0:00:05.6]} 50... Kd7 {[%clk 0:00:04.6]} 51. Rc4 {[%clk 0:00:05.4]}
51... Re5 {[%clk 0:00:04.6]} 52. Rd4+ {[%clk 0:00:03.5]} 52... Kc6 {[%clk
0:00:04.3]} 53. Rc4+ {[%clk 0:00:04.4]} 53... Kb5 {[%clk 0:00:04.5]} 54. Rxc7
{[%clk 0:00:04.5]} 54... a6 {[%clk 0:00:05.1]} 55. Ra7 {[%clk 0:00:03.9]} 55...
Re2 {[%clk 0:00:04.1]} 56. a4+ {[%clk 0:00:04.2]} 56... Kxb4 {[%clk 0:00:03.1]}
57. Rxa6 {[%clk 0:00:04.4]} 57... Kc5 {[%clk 0:00:03.7]} 58. Kxg5 {[%clk
0:00:04.2]} 58... Rg2+ {[%clk 0:00:04.3]} 59. Kf5 {[%clk 0:00:03.8]} 59... Ra2
{[%clk 0:00:04]} 60. f4 {[%clk 0:00:04.2]} 60... Kc6 {[%clk 0:00:03.9]} 61. Ra8
{[%clk 0:00:03.9]} 61... Kb7 {[%clk 0:00:04]} 62. Re8 {[%clk 0:00:02.9]} 62...
Rxa4 {[%clk 0:00:04.6]} 63. Ke5 {[%clk 0:00:02.5]} 63... b5 {[%clk 0:00:04.8]}
64. Re7+ {[%clk 0:00:02.6]} 64... Kc6 {[%clk 0:00:04.6]} 65. Re6+ {[%clk
0:00:02.6]} 65... Kc5 {[%clk 0:00:04.8]} 66. Re8 {[%clk 0:00:02.6]} 66... Ra1
{[%clk 0:00:05.2]} 67. Rc8+ {[%clk 0:00:03.1]} 67... Kb6 {[%clk 0:00:05.7]} 68.
f5 {[%clk 0:00:03.5]} 68... Re1+ {[%clk 0:00:05.4]} 69. Kf6 {[%clk 0:00:03.8]}
69... Kb7 {[%clk 0:00:05.5]} 70. Rc2 {[%clk 0:00:03.8]} 70... Kb6 {[%clk
0:00:05.5]} 71. Kf7 {[%clk 0:00:03.9]} 71... b4 {[%clk 0:00:05.9]} 72. f6 {[%clk
0:00:04.5]} 72... Kb5 {[%clk 0:00:06.3]} 73. Kg7 {[%clk 0:00:04.9]} 73... b3
{[%clk 0:00:06.7]} 74. Rb2 {[%clk 0:00:05.2]} 74... Kb4 {[%clk 0:00:07]} 75. f7
{[%clk 0:00:05.4]} 75... Rg1+ {[%clk 0:00:07.3]} 76. Kf6 {[%clk 0:00:05.5]}
76... Rf1+ {[%clk 0:00:07.6]} 77. Ke7 {[%clk 0:00:05.9]} 77... Kc3 {[%clk
0:00:08.1]} 78. Rxb3+ {[%clk 0:00:06]} 78... Kxb3 {[%clk 0:00:08.4]} 79. f8=Q
{[%clk 0:00:06.9]} 79... Rxf8 {[%clk 0:00:08.3]} 80. Kxf8 {[%clk 0:00:06.7]}
1/2-1/2

[Event "Late-Titled-Tuesday-Blitz-February-27-2024"]
[Site "Chess.com"]
[Date "2024.02.27"]
[Round "8"]
[White "Sargsyan_Shant"]
[Black "MITerryble"]
[Result "1/2-1/2"]
[WhiteElo "2920"]
[BlackElo "3020"]
[TimeControl "180+1"]
[EndTime "15:30:37 PST"]
[Termination "Game drawn by repetition"]

1. c4 {[%clk 0:03:00.1]} 1... e5 {[%clk 0:02:58.1]} 2. g3 {[%clk 0:02:59.9]}
2... Nf6 {[%clk 0:02:57.7]} 3. Bg2 {[%clk 0:03:00.5]} 3... c6 {[%clk 0:02:58.4]}
4. d4 {[%clk 0:02:59.2]} 4... Bb4+ {[%clk 0:02:58.5]} 5. Bd2 {[%clk 0:02:58.9]}
5... Bxd2+ {[%clk 0:02:58.8]} 6. Qxd2 {[%clk 0:02:59.8]} 6... d6 {[%clk
0:02:59.7]} 7. Nc3 {[%clk 0:02:59.7]} 7... O-O {[%clk 0:02:59.6]} 8. e3 {[%clk
0:02:57.7]} 8... Be6 {[%clk 0:02:59.1]} 9. b3 {[%clk 0:02:55.4]} 9... exd4
{[%clk 0:02:52.7]} 10. Qxd4 {[%clk 0:02:53.4]} 10... Qa5 {[%clk 0:02:53.3]} 11.
Qd2 {[%clk 0:02:44.7]} 11... Rd8 {[%clk 0:02:49.1]} 12. Nge2 {[%clk 0:02:44.4]}
12... d5 {[%clk 0:02:46.5]} 13. Rd1 {[%clk 0:02:30.7]} 13... Na6 {[%clk
0:02:36.9]} 14. cxd5 {[%clk 0:02:30.4]} 14... cxd5 {[%clk 0:02:26.7]} 15. O-O
{[%clk 0:02:25.7]} 15... Rac8 {[%clk 0:02:27]} 16. Rc1 {[%clk 0:02:10.8]} 16...
Qb4 {[%clk 0:02:06]} 17. Nd4 {[%clk 0:02:09.7]} 17... Rc5 {[%clk 0:01:48.9]} 18.
Rc2 {[%clk 0:02:08.9]} 18... Rdc8 {[%clk 0:01:48.9]} 19. Rfc1 {[%clk 0:02:09.3]}
19... h6 {[%clk 0:01:34.7]} 20. h3 {[%clk 0:02:09]} 20... Bd7 {[%clk 0:01:32]}
21. g4 {[%clk 0:02:05.9]} 21... Nb8 {[%clk 0:01:27.3]} 22. Nb1 {[%clk
0:01:29.7]} 22... Qxd2 {[%clk 0:01:23.3]} 23. Nxd2 {[%clk 0:01:30.6]} 23... Rxc2
{[%clk 0:01:22]} 24. Rxc2 {[%clk 0:01:31.5]} 24... Rxc2 {[%clk 0:01:22.1]} 25.
Nxc2 {[%clk 0:01:32.4]} 25... Nc6 {[%clk 0:01:21.3]} 26. f4 {[%clk 0:01:29.4]}
26... Be6 {[%clk 0:01:18]} 27. Kf2 {[%clk 0:01:29.4]} 27... Kf8 {[%clk
0:01:18.3]} 28. Nd4 {[%clk 0:01:18.8]} 28... Ke7 {[%clk 0:01:17.1]} 29. Ke2
{[%clk 0:01:08.8]} 29... Nxd4+ {[%clk 0:01:06.3]} 30. exd4 {[%clk 0:01:09.7]}
30... Kd6 {[%clk 0:01:04.1]} 31. Ke3 {[%clk 0:01:09.8]} 31... Bd7 {[%clk
0:00:54.8]} 32. f5 {[%clk 0:01:07.9]} 32... Bb5 {[%clk 0:00:49.2]} 33. Nf3
{[%clk 0:01:04.7]} 33... Nd7 {[%clk 0:00:49.3]} 34. Kf4 {[%clk 0:01:03.2]} 34...
f6 {[%clk 0:00:48.8]} 35. Ke3 {[%clk 0:00:57.8]} 35... Nb8 {[%clk 0:00:46.4]}
36. Nh4 {[%clk 0:00:57.5]} 36... Nc6 {[%clk 0:00:46.7]} 37. Ng6 {[%clk
0:00:48.2]} 37... Nb4 {[%clk 0:00:41.2]} 38. a4 {[%clk 0:00:48.2]} 38... Be8
{[%clk 0:00:34.7]} 39. Nf4 {[%clk 0:00:46.3]} 39... Bf7 {[%clk 0:00:35.2]} 40.
Kd2 {[%clk 0:00:46.4]} 40... a5 {[%clk 0:00:34.4]} 41. Bf1 {[%clk 0:00:44.1]}
41... Nc6 {[%clk 0:00:31.8]} 42. Kc3 {[%clk 0:00:44.4]} 42... Na7 {[%clk
0:00:29.6]} 43. Be2 {[%clk 0:00:41.2]} 43... b6 {[%clk 0:00:29.3]} 44. Bf1
{[%clk 0:00:41.4]} 44... Kc7 {[%clk 0:00:29.2]} 45. Ba6 {[%clk 0:00:40.7]} 45...
Nc6 {[%clk 0:00:24.9]} 46. Bb5 {[%clk 0:00:39.3]} 46... Ne7 {[%clk 0:00:23.6]}
47. Bd3 {[%clk 0:00:36]} 47... Nc6 {[%clk 0:00:22.2]} 48. Bb5 {[%clk 0:00:36.3]}
48... Ne7 {[%clk 0:00:22.5]} 49. b4 {[%clk 0:00:36.9]} 49... Nc8 {[%clk
0:00:16.8]} 50. Bd3 {[%clk 0:00:29.9]} 50... Kd6 {[%clk 0:00:16.2]} 51. Ne2
{[%clk 0:00:25.4]} 51... Be8 {[%clk 0:00:14.8]} 52. Kb3 {[%clk 0:00:24]} 52...
Ne7 {[%clk 0:00:14.3]} 53. b5 {[%clk 0:00:18.6]} 53... Bf7 {[%clk 0:00:13.5]}
54. Kc3 {[%clk 0:00:18.8]} 54... Kd7 {[%clk 0:00:13.4]} 55. Kd2 {[%clk
0:00:19.2]} 55... Kd6 {[%clk 0:00:08.3]} 56. Nf4 {[%clk 0:00:19.6]} 56... Nc8
{[%clk 0:00:08.5]} 57. Ke3 {[%clk 0:00:20]} 57... Ne7 {[%clk 0:00:08.8]} 58. Bc2
{[%clk 0:00:20.2]} 58... Nc8 {[%clk 0:00:09.1]} 59. Kf3 {[%clk 0:00:20.8]} 59...
Ne7 {[%clk 0:00:09.7]} 60. h4 {[%clk 0:00:21]} 60... Nc8 {[%clk 0:00:09.8]} 61.
Kg3 {[%clk 0:00:21.6]} 61... Ne7 {[%clk 0:00:09.9]} 62. Nh3 {[%clk 0:00:22.1]}
62... Be8 {[%clk 0:00:09.6]} 63. Kf4 {[%clk 0:00:21.8]} 63... Bf7 {[%clk
0:00:09.3]} 64. Bd1 {[%clk 0:00:20.7]} 64... Be8 {[%clk 0:00:09.3]} 65. g5
{[%clk 0:00:20.4]} 65... hxg5+ {[%clk 0:00:07.8]} 66. hxg5 {[%clk 0:00:21.3]}
66... Nxf5 {[%clk 0:00:03.1]} 67. gxf6 {[%clk 0:00:12.8]} 67... gxf6 {[%clk
0:00:04]} 68. Kxf5 {[%clk 0:00:09.2]} 68... Bd7+ {[%clk 0:00:04.3]} 69. Kxf6
{[%clk 0:00:09.8]} 69... Bxh3 {[%clk 0:00:04.7]} 70. Bc2 {[%clk 0:00:09.2]}
70... Bg2 {[%clk 0:00:03]} 71. Kf7 {[%clk 0:00:08.4]} 71... Be4 {[%clk
0:00:02.9]} 72. Bd1 {[%clk 0:00:09]} 72... Bd3 {[%clk 0:00:03.1]} 73. Ke8 {[%clk
0:00:08.5]} 73... Bf5 {[%clk 0:00:02.2]} 74. Kd8 {[%clk 0:00:09.1]} 74... Be6
{[%clk 0:00:02.3]} 75. Bc2 {[%clk 0:00:08.8]} 75... Bg4 {[%clk 0:00:02.6]} 76.
Bb3 {[%clk 0:00:08.3]} 76... Bh3 {[%clk 0:00:02.7]} 77. Ke8 {[%clk 0:00:07.9]}
77... Be6 {[%clk 0:00:02.6]} 78. Kf8 {[%clk 0:00:08.5]} 78... Bf5 {[%clk
0:00:03.1]} 79. Kf7 {[%clk 0:00:08.5]} 79... Bd3 {[%clk 0:00:03.3]} 80. Kf6
{[%clk 0:00:07.3]} 80... Be4 {[%clk 0:00:03.5]} 81. Bd1 {[%clk 0:00:07.5]} 81...
Bd3 {[%clk 0:00:03.1]} 82. Kf7 {[%clk 0:00:07.6]} 82... Be4 {[%clk 0:00:03.5]}
83. Ke8 {[%clk 0:00:08]} 83... Bd3 {[%clk 0:00:04.1]} 84. Kd8 {[%clk 0:00:07.3]}
84... Bf5 {[%clk 0:00:04.7]} 85. Bb3 {[%clk 0:00:07.8]} 85... Be6 {[%clk
0:00:05]} 86. Bc2 {[%clk 0:00:07.2]} 86... Bh3 {[%clk 0:00:05.3]} 87. Ke8 {[%clk
0:00:07.1]} 87... Bg4 {[%clk 0:00:05.4]} 88. Kf7 {[%clk 0:00:07.1]} 88... Be2
{[%clk 0:00:05.6]} 89. Kf6 {[%clk 0:00:07.2]} 89... Bf3 {[%clk 0:00:06.1]} 90.
Kf5 {[%clk 0:00:07.5]} 90... Be2 {[%clk 0:00:06.6]} 91. Kf4 {[%clk 0:00:07.8]}
91... Ke6 {[%clk 0:00:05.5]} 92. Kg5 {[%clk 0:00:06.8]} 92... Bf3 {[%clk
0:00:05.2]} 93. Bf5+ {[%clk 0:00:07]} 93... Kd6 {[%clk 0:00:05.2]} 94. Bg4
{[%clk 0:00:06]} 94... Be4 {[%clk 0:00:04.3]} 95. Bd1 {[%clk 0:00:06.4]} 95...
Ke6 {[%clk 0:00:04.4]} 96. Bg4+ {[%clk 0:00:06.1]} 96... Ke7 {[%clk 0:00:05]}
97. Bd1 {[%clk 0:00:06.1]} 97... Kf7 {[%clk 0:00:05.1]} 98. Bh5+ {[%clk
0:00:06.5]} 98... Kg7 {[%clk 0:00:04.8]} 99. Bd1 {[%clk 0:00:07.1]} 99... Kf7
{[%clk 0:00:04.6]} 100. Bh5+ {[%clk 0:00:07.3]} 100... Ke6 {[%clk 0:00:03.5]}
101. Bd1 {[%clk 0:00:07.5]} 101... Bd3 {[%clk 0:00:03.7]} 102. Bg4+ {[%clk
0:00:07.6]} 102... Kd6 {[%clk 0:00:03.8]} 103. Bd1 {[%clk 0:00:08.5]} 103... Bc4
{[%clk 0:00:03.5]} 104. Kf5 {[%clk 0:00:08.2]} 104... Bf1 {[%clk 0:00:03.1]}
105. Kf6 {[%clk 0:00:08.6]} 105... Bd3 {[%clk 0:00:03.1]} 106. Kg5 {[%clk
0:00:09]} 106... Ke7 {[%clk 0:00:02.1]} 107. Kf4 {[%clk 0:00:09.3]} 107... Kf6
{[%clk 0:00:02]} 108. Bb3 {[%clk 0:00:09]} 108... Be4 {[%clk 0:00:02.1]} 109.
Bd1 {[%clk 0:00:08]} 109... Ke6 {[%clk 0:00:02.2]} 110. Kg5 {[%clk 0:00:08]}
110... Bd3 {[%clk 0:00:02.2]} 111. Bg4+ {[%clk 0:00:08.3]} 111... Kd6 {[%clk
0:00:02.6]} 112. Bd1 {[%clk 0:00:09.2]} 1/2-1/2

[Event "Late-Titled-Tuesday-Blitz-February-27-2024"]
[Site "Chess.com"]
[Date "2024.02.27"]
[Round "9"]
[White "toninhojit"]
[Black "Djager97"]
[Result "1-0"]
[WhiteElo "2477"]
[BlackElo "2612"]
[TimeControl "180+1"]
[EndTime "15:37:50 PST"]
[Termination "toninhojit won by resignation"]

1. d4 {[%clk 0:02:48.7]} 1... Nf6 {[%clk 0:02:58.9]} 2. c4 {[%clk 0:02:48.6]}
2... c5 {[%clk 0:02:59.4]} 3. e3 {[%clk 0:02:47.9]} 3... d6 {[%clk 0:03:00.1]}
4. Nc3 {[%clk 0:02:47.1]} 4... Nbd7 {[%clk 0:02:57.4]} 5. Nf3 {[%clk 0:02:47.6]}
5... g6 {[%clk 0:02:57.1]} 6. Be2 {[%clk 0:02:47.7]} 6... Bg7 {[%clk 0:02:57.7]}
7. O-O {[%clk 0:02:48]} 7... O-O {[%clk 0:02:58.2]} 8. b3 {[%clk 0:02:48.3]}
8... cxd4 {[%clk 0:02:53.4]} 9. exd4 {[%clk 0:02:48.3]} 9... d5 {[%clk
0:02:53.3]} 10. c5 {[%clk 0:02:47.8]} 10... Nb6 {[%clk 0:02:39.7]} 11. cxb6
{[%clk 0:02:45.9]} 1-0

[Event "Late-Titled-Tuesday-Blitz-February-27-2024"]
[Site "Chess.com"]
[Date "2024.02.27"]
[Round "9"]
[White "VitorBronson"]
[Black "Mikhail646464"]
[Result "1-0"]
[WhiteElo "2487"]
[BlackElo "2351"]
[TimeControl "180+1"]
[EndTime "15:38:46 PST"]
[Termination "VitorBronson won by resignation"]

1. d4 {[%clk 0:02:59.9]} 1... Nf6 {[%clk 0:02:52.1]} 2. c4 {[%clk 0:02:59.8]}
2... g6 {[%clk 0:02:51.6]} 3. Nc3 {[%clk 0:02:59.5]} 3... Bg7 {[%clk 0:02:51.6]}
4. e4 {[%clk 0:02:59.5]} 4... d6 {[%clk 0:02:52]} 5. Nf3 {[%clk 0:02:59.7]} 5...
O-O {[%clk 0:02:51.1]} 6. Be2 {[%clk 0:03:00.1]} 6... c5 {[%clk 0:02:51.4]} 7.
O-O {[%clk 0:02:59.5]} 7... cxd4 {[%clk 0:02:49.1]} 8. Nxd4 {[%clk 0:02:59.2]}
8... Nc6 {[%clk 0:02:49.8]} 9. Be3 {[%clk 0:02:44.2]} 9... Bd7 {[%clk
0:02:47.5]} 10. h3 {[%clk 0:02:39.7]} 10... Nxd4 {[%clk 0:02:44.1]} 11. Bxd4
{[%clk 0:02:38.3]} 11... Bc6 {[%clk 0:02:44.6]} 12. Qc2 {[%clk 0:02:37.1]} 12...
a5 {[%clk 0:02:39.3]} 13. Rad1 {[%clk 0:02:33.1]} 13... Nd7 {[%clk 0:02:35.6]}
14. Bxg7 {[%clk 0:02:31.1]} 14... Kxg7 {[%clk 0:02:35.2]} 15. Nd5 {[%clk
0:02:28.8]} 15... Qb6 {[%clk 0:02:31.3]} 16. Nxb6 {[%clk 0:02:28.4]} 16... Nxb6
{[%clk 0:02:29.5]} 17. c5 {[%clk 0:02:17.4]} 1-0

[Event "Late-Titled-Tuesday-Blitz-February-27-2024"]
[Site "Chess.com"]
[Date "2024.02.27"]
[Round "9"]
[White "OverallStranger"]
[Black "Bilan_Danila"]
[Result "0-1"]
[WhiteElo "2398"]
[BlackElo "2544"]
[TimeControl "180+1"]
[EndTime "15:39:04 PST"]
[Termination "Bilan_Danila won by resignation"]

1. e4 {[%clk 0:03:00.9]} 1... c6 {[%clk 0:02:55.4]} 2. d4 {[%clk 0:03:00.3]}
2... d5 {[%clk 0:02:55.7]} 3. exd5 {[%clk 0:03:01.2]} 3... cxd5 {[%clk
0:02:55.6]} 4. Bd3 {[%clk 0:03:01.9]} 4... Nc6 {[%clk 0:02:55.3]} 5. c3 {[%clk
0:03:02.1]} 5... Qc7 {[%clk 0:02:56]} 6. Ne2 {[%clk 0:03:01.7]} 6... Bg4 {[%clk
0:02:54.2]} 7. O-O {[%clk 0:03:02.3]} 7... Nf6 {[%clk 0:02:49.5]} 8. f3 {[%clk
0:02:55.6]} 8... Bd7 {[%clk 0:02:47.8]} 9. Bf4 {[%clk 0:02:54]} 9... e5 {[%clk
0:02:48]} 10. dxe5 {[%clk 0:02:53.1]} 10... Nxe5 {[%clk 0:02:48.9]} 11. Nd4
{[%clk 0:02:48.4]} 11... Bd6 {[%clk 0:02:41.3]} 12. Nb5 {[%clk 0:02:45.7]} 12...
Qb6+ {[%clk 0:02:31.3]} 13. Kh1 {[%clk 0:02:31.6]} 13... Bxb5 {[%clk 0:02:21.7]}
14. Bxb5+ {[%clk 0:02:28.4]} 14... Qxb5 {[%clk 0:02:21.2]} 15. Bxe5 {[%clk
0:02:29.3]} 15... Bxe5 {[%clk 0:02:19.4]} 16. Re1 {[%clk 0:02:30]} 16... O-O
{[%clk 0:02:10.8]} 17. Rxe5 {[%clk 0:02:29.1]} 17... Qxb2 {[%clk 0:02:11.1]} 18.
Nd2 {[%clk 0:02:27.9]} 18... Qxc3 {[%clk 0:02:09.9]} 19. Rc1 {[%clk 0:02:25.6]}
19... Qxe5 {[%clk 0:02:08]} 0-1